bitfinex/quotes_ETHUSD_20240703
["timestamp","ask_amount","ask_price","bid_price","bid_amount"]
[1719997090464,0.07475849,3344.2,3343.5,7.39]
[1719997090766,7.2779,3344.3,3343.5,7.39]
[1719997091090,7.2779,3344.3,3343.6,2.99072]
[1719997092110,7.2779,3344.3,3343.7,2.99069]
[1719997092479,7.2779,3344.3,3343.8,3.0]
[1719997093999,7.2779,3344.3,3343.6,3.0]
[1719997094194,7.2779,3344.3,3343.6,5.99071]
[1719997094395,1.0407124,3344.2,3343.6,5.99071]
[1719997096288,7.2779,3344.3,3343.6,5.99071]
[1719997096613,7.2779,3344.3,3343.7,2.99069]
[1719997096816,1.04067978,3344.2,3343.8,3.0]
[1719997096976,7.89990871,3344.3,3343.8,3.0]
[1719997096977,7.90199937,3344.3,3343.8,3.0]
[1719997097176,1.040683,3344.2,3343.8,3.0]
[1719997097414,7.2779,3344.3,3343.8,3.0]
[1719997097791,1.04068315,3344.2,3343.8,3.0]
[1719997098514,7.2779,3344.3,3343.8,3.0]
[1719997101126,0.62396626,3344.6,3343.9,2.99045]
[1719997101421,3.22557221,3344.6,3344.0,3.0]
[1719997103197,1.66460864,3344.6,3344.0,3.0]
[1719997103394,1.04064684,3344.5,3343.9,2.99049]
[1719997103696,0.62396626,3344.6,3344.0,3.0]
[1719997103891,3.22559278,3344.6,3344.0,3.0]
[1719997105387,3.22559278,3344.6,3343.8,5.99058]
[1719997105886,3.22559278,3344.6,3343.9,2.99049]
[1719997106087,3.22559278,3344.5,3344.0,3.0]
[1719997106314,1.04065061,3344.4,3344.0,3.0]
[1719997106529,0.62399059,3344.6,3343.9,2.99051]
[1719997106710,0.62399059,3344.5,3344.0,3.0]
[1719997106923,6.8487,3344.7,3344.0,3.0]
[1719997107235,0.62402306,3344.5,3344.0,3.0]
[1719997107428,1.66466911,3344.5,3344.0,3.0]
[1719997107598,1.04064605,3344.4,3344.0,3.0]
[1719997107800,0.62402306,3344.5,3344.0,3.0]
[1719997108109,0.62402306,3344.5,3343.8,3.0]
[1719997108309,0.62402306,3344.5,3343.7,3.0]
[1719997108505,1.56098294,3344.4,3343.7,3.0]
[1719997108712,0.62402306,3344.5,3343.7,5.99069]
[1719997108916,1.56098385,3344.4,3343.7,5.99069]
[1719997109099,0.62402306,3344.5,3343.7,5.99069]
[1719997109299,1.56098327,3344.4,3343.7,5.99069]
[1719997109636,0.62402306,3344.5,3343.7,8.98131]
[1719997110432,3.22565049,3344.5,3343.8,2.99059]
[1719997110598,1.04065233,3344.4,3343.9,3.0]
[1719997110953,0.62402306,3344.5,3343.9,5.99051]
[1719997111094,1.0406377,3344.4,3344.0,2.99042]
[1719997111301,0.62402306,3344.6,3344.0,2.99042]
[1719997111501,3.22560697,3344.6,3344.0,2.99042]
[1719997112131,3.22560697,3344.5,3343.9,3.0]
[1719997112735,1.11538267,3344.4,3343.9,3.0]
[1719997113055,3.22577674,3344.3,3343.6,3.0]
[1719997113233,0.07476019,3344.2,3343.6,3.0]
[1719997113441,3.30053693,3344.2,3343.6,3.0]
[1719997113613,3.22583404,3344.1,3343.6,3.0]
[1719997114135,1.04070147,3344.0,3343.6,3.0]
[1719997114341,0.69878325,3344.2,3343.6,3.0]
[1719997114511,1.04073597,3344.1,3343.6,3.0]
[1719997114711,0.69878337,3344.2,3343.6,3.0]
[1719997114939,1.0407367,3344.1,3343.6,3.0]
[1719997115761,0.07476044,3344.0,3343.6,3.0]
[1719997116053,0.6987916,3344.2,3343.6,3.0]
[1719997116428,3.22588372,3344.1,3343.6,3.0]
[1719997118454,0.6987916,3344.2,3343.6,3.0]
[1719997118611,2.60185695,3344.1,3343.6,3.0]
[1719997118809,0.6987916,3344.2,3343.6,3.0]
[1719997119130,1.04073973,3344.1,3343.6,3.0]
[1719997120167,0.07476289,3344.0,3343.6,3.0]
[1719997120673,0.07476295,3344.1,3343.9,0.05]
[1719997121464,0.62402306,3344.3,3343.9,0.05]
[1719997121763,0.07476101,3344.2,3343.9,0.05]
[1719997122664,0.07476108,3344.3,3343.9,0.05]
[1719997124127,1.04069912,3344.2,3343.9,0.05]
[1719997124328,0.07476119,3344.2,3343.9,0.05]
[1719997125132,1.07125804,3344.2,3343.9,0.05]
[1719997125448,2.60185426,3344.1,3343.9,0.05]
[1719997125622,7.1153,3343.9,3343.5,7.39]
[1719997125818,0.07477069,3343.8,3343.5,7.39]
[1719997126053,0.07477069,3343.8,3343.2,3.0]
[1719997126237,0.07477069,3343.8,3343.2,0.42504507]
[1719997126452,3.3010269,3343.8,3343.0,21.60487145]
[1719997126651,2.67694981,3343.7,3343.0,21.60487145]
[1719997126855,0.07477233,3343.7,3343.0,18.61357145]
[1719997127066,0.07477233,3343.7,3343.0,19.04815512]
[1719997127067,2.34699676,3343.7,3343.0,19.04815512]
[1719997127356,7.2099,3343.2,3343.0,18.61357145]
[1719997127868,1.04104718,3343.1,3343.0,18.61357145]
[1719997128036,1.11583273,3343.1,3342.4,7.39]
[1719997128230,0.07478555,3343.1,3342.4,10.3818]
[1719997128563,0.07478555,3343.1,3342.4,10.80628901]
[1719997129168,0.07478816,3343.2,3342.5,3.0]
[1719997129674,0.07478819,3343.3,3342.6,2.99163]
[1719997129843,0.07478819,3343.2,3342.6,2.99163]
[1719997130160,0.99649685,3343.3,3342.5,3.0]
[1719997130368,0.07478837,3343.2,3342.5,3.0]
[1719997131972,0.99649685,3343.1,3342.5,3.0]
[1719997132127,0.07479193,3343.0,3342.5,3.0]
[1719997133122,7.1369,3342.9,3342.4,7.39]
[1719997133364,0.074795,3342.8,3342.0,3.0]
[1719997133664,0.074795,3342.8,3342.0,3.41926668]
[1719997134643,2.60302787,3342.7,3342.0,0.41926668]
[1719997134972,1.1160207,3342.6,3341.8,3.0]
[1719997135281,1.07129659,3342.6,3341.8,3.0]
[1719997136144,1.07129659,3342.6,3341.8,3.42636228]
[1719997136468,0.07479974,3342.6,3341.8,3.42636228]
[1719997137000,0.07479974,3342.6,3341.8,3.48620493]
[1719997137594,0.07479988,3342.8,3341.8,3.48620493]
[1719997138474,0.07479988,3342.8,3342.0,2.99221]
[1719997139892,7.1369,3342.9,3342.1,2.99208]
[1719997140092,7.1369,3342.9,3342.4,2.99185]
[1719997142606,0.62324886,3343.5,3342.5,1.3955]
[1719997142900,0.07478185,3343.7,3343.2,2.99109]
[1719997143049,0.62324886,3343.8,3343.2,2.99109]
[1719997143050,0.07477276,3343.8,3343.3,2.99105]
[1719997143253,0.07477276,3343.8,3343.3,5.98203]
[1719997143554,0.07477276,3343.8,3343.4,2.99095]
[1719997144091,0.07477107,3343.9,3343.4,2.99095]
[1719997148206,0.07477137,3343.9,3343.4,2.99089]
[1719997148375,0.07476649,3344.3,3343.4,2.99089]
[1719997148582,0.07476649,3344.3,3343.6,2.99078]
[1719997149872,0.07476649,3344.3,3343.7,2.99068]
[1719997150184,0.07476649,3344.3,3343.6,2.99071]
[1719997150387,0.07476649,3344.3,3343.7,2.99064]
[1719997150621,0.07476649,3344.3,3343.8,2.9906]
[1719997150902,0.07476649,3344.3,3343.6,2.99071]
[1719997151311,0.07476649,3344.3,3343.8,2.9906]
[1719997152571,0.07476649,3344.3,3343.4,3.41778879]
[1719997152829,0.07476649,3344.3,3343.6,2.99073]
[1719997152990,0.07476649,3344.3,3343.7,2.99069]
[1719997154716,0.07476649,3344.3,3343.5,3.0]
[1719997154717,0.0747638,3344.2,3343.5,5.99079]
[1719997154876,0.0747638,3344.2,3343.5,8.98158]
[1719997155074,0.0747638,3344.2,3343.5,5.99079]
[1719997155652,0.0747638,3344.2,3343.5,3.0]
[1719997155785,0.0747638,3344.2,3343.4,3.0]
[1719997155987,0.0747638,3344.2,3343.4,5.99093]
[1719997156290,0.99649685,3344.1,3343.4,3.0]
[1719997156504,0.07477131,3344.0,3343.4,3.0]
[1719997157681,0.07477131,3344.0,3343.4,5.99095]
[1719997161601,0.07477131,3344.0,3343.4,3.0]
[1719997161602,0.99649685,3343.8,3343.4,3.0]
[1719997161930,0.99649685,3343.8,3343.0,7.39]
[1719997161931,0.99649685,3343.5,3343.0,7.39]
[1719997162216,0.07478538,3343.4,3343.0,7.39]
[1719997163118,0.07478538,3343.4,3342.4,6.03515638]
[1719997163119,0.99649685,3343.2,3342.6,0.40493211]
[1719997163272,0.6979769,3343.4,3342.4,3.04336638]
[1719997163273,7.4971,3342.9,3342.4,0.05157638]
[1719997163473,0.07479582,3342.8,3342.4,0.05157638]
[1719997166519,0.07479582,3342.8,3342.4,0.47494166]
[1719997166723,0.07479582,3342.8,3342.4,0.05157638]
[1719997172235,0.07479582,3342.8,3342.3,0.40516689]
[1719997172401,0.07479582,3342.8,3342.1,5.99212]
[1719997174928,0.07479582,3342.8,3342.1,5.99209]
[1719997179201,0.07479582,3342.8,3342.1,8.98417]
[1719997179600,0.07479582,3342.8,3342.1,5.99208]
[1719997179826,1.07129267,3342.8,3342.1,3.0]
[1719997180043,1.07129267,3342.8,3342.0,3.41612295]
[1719997181728,1.07129267,3342.8,3342.0,6.40833295]
[1719997182360,0.07479582,3342.8,3342.2,2.99203]
[1719997182727,0.07479582,3342.8,3342.3,2.9919]
[1719997182728,0.07479689,3342.8,3342.3,2.9919]
[1719997182927,0.07479689,3342.8,3342.3,5.98378]
[1719997183164,0.07479689,3342.8,3342.3,2.99188]
[1719997183964,0.07479689,3342.8,3342.3,5.98375]
[1719997185239,0.07479689,3342.8,3342.3,5.98376]
[1719997186427,0.07479689,3342.8,3342.3,2.99187]
[1719997186632,0.07479689,3342.8,3342.1,2.99207]
[1719997187228,1.07129374,3342.8,3342.0,6.40831295]
[1719997188027,1.07129374,3342.8,3342.0,3.41612295]
[1719997188261,6.8785,3342.5,3342.0,0.41612295]
[1719997188439,0.0748074,3342.4,3341.7,3.0]
[1719997189233,0.0748074,3342.4,3341.7,2.65537283]
[1719997190253,6.8641,3342.3,3341.5,0.41726245]
[1719997190576,6.8641,3342.3,3340.5,7.39]
[1719997190577,2.99266,3341.5,3340.5,7.39]
[1719997190771,0.99649685,3340.6,3339.8,0.42211771]
[1719997191073,3.62849685,3340.2,3339.4,7.39]
[1719997191306,0.99649685,3340.0,3338.9,7.39]
[1719997191582,0.99649685,3340.0,3338.3,2.99552]
[1719997191583,8.36359685,3337.8,3336.1,0.8389365]
[1719997191739,7.3671,3336.6,3336.1,0.8389365]
[1719997192073,0.99649685,3337.3,3336.2,0.31185736]
[1719997192074,0.99649685,3337.1,3336.2,0.31185736]
[1719997192246,0.07493059,3337.1,3336.2,0.31185736]
[1719997192444,0.62291074,3338.1,3336.6,10.5395]
[1719997192645,2.56552655,3339.5,3337.0,2.92268228]
[1719997192646,0.62291074,3338.8,3337.0,2.92268228]
[1719997192846,0.15572769,3338.7,3337.0,2.92618543]
[1719997193051,0.02950403,3339.2,3337.9,2.99585]
[1719997193256,0.02950403,3339.2,3337.4,2.9963]
[1719997193257,0.99649685,3339.0,3337.4,2.9963]
[1719997193454,0.02950403,3339.8,3338.5,2.99529]
[1719997193658,9.91608367,3340.1,3338.9,2.99494]
[1719997193659,1.56322324,3340.1,3338.9,2.99494]
[1719997193857,1.56322324,3340.1,3338.6,3.05507887]
[1719997193858,1.56322324,3340.1,3339.0,3.05474423]
[1719997194043,1.56322324,3340.1,3339.2,2.99468]
[1719997194248,1.56322324,3340.1,3339.3,3.0]
[1719997194650,1.56322324,3340.1,3338.7,3.0]
[1719997194651,0.99649685,3339.8,3338.7,3.0]
[1719997194872,0.02950403,3340.0,3338.8,0.05989357]
[1719997195057,0.02950403,3340.0,3338.9,0.55]
[1719997195236,1.59272727,3340.1,3339.0,0.05988613]
[1719997195435,1.56322324,3340.1,3339.0,3.05472613]
[1719997195697,1.56322324,3340.1,3339.5,2.99441]
[1719997195837,1.56322324,3340.1,3339.6,3.05987426]
[1719997196044,1.56322324,3340.1,3339.9,2.9941]
[1719997196376,1.56322324,3340.1,3340.0,3.0]
[1719997196551,1.56322324,3340.1,3340.0,3.55]
[1719997198103,0.95070811,3342.4,3340.7,2.99334]
[1719997198104,0.99649685,3342.0,3340.7,2.99334]
[1719997198391,6.7608,3342.3,3340.8,3.0]
[1719997198392,0.02950403,3341.9,3340.8,3.0]
[1719997198540,0.02950403,3342.1,3340.9,3.54317]
[1719997198739,0.77868009,3342.0,3341.0,3.0]
[1719997198934,0.02950403,3341.9,3341.0,3.0]
[1719997200164,0.02950403,3341.9,3340.9,3.54318]
[1719997200379,0.77868009,3342.0,3341.1,2.99299]
[1719997200538,0.99649685,3342.8,3341.2,0.60984537]
[1719997200742,0.02950403,3342.7,3341.3,3.05267291]
[1719997200938,0.02950403,3342.7,3341.4,3.55]
[1719997201176,0.02950403,3342.7,3341.7,2.99247]
[1719997201382,0.02950403,3342.7,3341.8,3.05983914]
[1719997201886,0.99649685,3342.3,3341.1,2.99296]
[1719997202054,0.02950403,3342.2,3341.4,3.0]
[1719997202261,0.02950403,3342.2,3341.3,3.0]
[1719997202980,0.02950403,3342.2,3341.3,5.99283]
[1719997203187,0.99649685,3342.9,3341.5,2.99263]
[1719997203383,0.02950403,3342.8,3341.9,2.9923]
[1719997203593,0.02950403,3342.8,3342.0,0.05983842]
[1719997203745,0.02950403,3342.9,3342.0,6.05203842]
[1719997203945,0.02950403,3342.9,3342.0,3.0]
[1719997203946,0.84628809,3342.8,3342.0,3.0]
[1719997204156,0.02950403,3342.7,3341.8,5.99239]
[1719997204397,0.02950403,3342.7,3341.9,2.99229]
[1719997204546,0.02950403,3342.7,3341.8,3.0]
[1719997204547,0.02950403,3343.0,3342.0,3.0]
[1719997204755,0.02950403,3343.0,3342.2,2.99203]
[1719997205070,0.02950403,3343.0,3342.3,5.99194]
[1719997205243,0.02950403,3343.0,3342.3,3.0]
[1719997205441,0.02950403,3343.0,3341.5,2.99264]
[1719997205442,0.99649685,3342.9,3341.7,2.99244]
[1719997205688,0.02950403,3342.8,3341.8,2.99239]
[1719997205985,0.85434043,3342.8,3341.9,3.05213875]
[1719997206171,0.85434043,3342.8,3342.2,2.99202]
[1719997206486,0.85434043,3342.8,3342.3,0.05983286]
[1719997206687,0.85434043,3342.8,3341.5,2.99266]
[1719997206688,0.02950403,3342.7,3341.5,2.99266]
[1719997206849,0.18803413,3342.6,3341.6,0.55]
[1719997207049,0.18803413,3342.6,3341.9,2.9923]
[1719997207271,0.18803413,3342.6,3342.0,2.9922]
[1719997207476,0.88384446,3342.8,3342.1,3.0]
[1719997207750,0.85434043,3342.8,3342.1,3.0]
[1719997208163,0.85434043,3342.8,3341.8,2.99237]
[1719997208164,0.02950403,3342.7,3341.9,3.0]
[1719997208366,0.18803413,3342.6,3341.6,3.54253]
[1719997208691,0.02950403,3342.5,3341.7,3.0]
[1719997209044,0.18803413,3342.6,3341.8,0.05984332]
[1719997209247,0.85434043,3342.8,3342.0,2.99221]
[1719997209477,0.85434043,3342.8,3342.2,2.99202]
[1719997209678,0.85434043,3342.8,3341.7,3.0]
[1719997209679,0.02950403,3342.7,3341.7,3.0]
[1719997209901,0.02950403,3342.7,3342.0,2.9922]
[1719997210110,0.85434043,3342.8,3342.1,5.99209]
[1719997210244,0.02950403,3343.0,3341.6,3.0]
[1719997210449,6.7608,3343.1,3342.5,2.99175]
[1719997210752,7.43688,3343.1,3342.1,2.9921]
[1719997210991,0.02950403,3343.0,3342.2,3.55]
[1719997211145,0.02950403,3343.0,3341.7,0.55]
[1719997211146,0.02950403,3343.0,3342.1,3.0]
[1719997211351,0.7466384,3342.9,3341.8,2.99236]
[1719997211553,0.7466384,3342.9,3342.2,2.99203]
[1719997211899,0.02950403,3342.8,3341.9,3.0]
[1719997212249,0.7466384,3342.9,3342.2,2.99201]
[1719997212450,0.02950403,3343.0,3342.3,3.0]
[1719997212886,0.02950403,3343.0,3342.1,3.0]
[1719997213190,0.99649685,3342.6,3342.0,3.0]
[1719997213488,0.99649685,3342.6,3340.5,10.77720315]
[1719997213489,0.99649685,3342.3,3340.8,7.39]
[1719997213692,7.0857,3341.9,3340.7,2.99338]
[1719997213860,0.73807403,3341.8,3340.9,2.99312]
[1719997214045,0.02950403,3341.7,3340.9,2.99312]
[1719997214249,0.70857,3341.8,3341.2,2.99287]
[1719997214449,0.70857,3341.8,3340.2,0.00350315]
[1719997214450,7.2481,3342.6,3341.3,0.05984915]
[1719997214649,7.2481,3342.6,3340.5,2.99702315]
[1719997214650,0.02950403,3342.5,3341.4,2.99274]
[1719997214888,0.02950403,3342.5,3341.2,2.99292]
[1719997215086,0.02950403,3342.5,3341.5,5.9926]
[1719997215291,8.24459685,3342.6,3341.9,2.99225]
[1719997215292,7.2481,3342.6,3341.9,2.99225]
[1719997215450,8.05077801,3342.6,3342.0,3.0]
[1719997215654,8.05077801,3342.6,3341.8,2.99239]
[1719997215854,8.05077801,3342.6,3341.9,5.99226]
[1719997216073,6.8601,3343.3,3342.0,3.05204609]
[1719997216282,0.99649685,3343.8,3342.4,2.99185]
[1719997216502,0.99649685,3343.8,3341.5,2.99259]
[1719997216503,0.99649685,3342.9,3340.7,0.62290718]
[1719997216796,6.8601,3343.5,3341.3,3.05264501]
[1719997216797,0.99649685,3342.7,3341.3,3.05264501]
[1719997217014,6.8601,3342.8,3342.1,2.99211]
[1719997217306,7.48,3343.9,3342.4,2.99185]
[1719997217307,6.9258,3343.4,3342.4,2.99185]
[1719997217602,0.99649685,3343.0,3341.7,2.99247]
[1719997217760,0.02950403,3343.3,3342.2,2.992]
[1719997218096,0.02950403,3343.3,3341.4,7.39]
[1719997218097,0.02950403,3343.3,3341.7,2.99245]
[1719997218254,0.02950403,3343.3,3342.2,2.99203]
[1719997218453,0.02950403,3343.3,3342.3,3.0]
[1719997218798,0.99649685,3342.9,3342.2,3.0]
[1719997219099,0.02950403,3342.8,3341.9,2.99222]
[1719997219284,0.02950403,3343.1,3342.2,2.992]
[1719997219618,0.02950403,3343.1,3342.3,3.0]
[1719997219619,0.1821181,3343.0,3342.3,3.0]
[1719997219990,0.02950403,3342.9,3342.1,3.0]
[1719997220207,0.02950403,3342.9,3341.8,0.55]
[1719997220410,0.02950403,3342.9,3341.8,3.54236]
[1719997220614,0.02950403,3342.9,3342.0,2.99218]
[1719997220889,0.02950403,3342.9,3342.1,3.0]
[1719997221191,0.21162213,3342.9,3342.1,3.0]
[1719997222015,0.21162213,3342.9,3342.2,2.99202]
[1719997222016,0.1821181,3342.9,3342.2,2.99202]
[1719997222205,0.02950403,3343.1,3342.3,3.0]
[1719997222614,0.99649685,3343.0,3342.2,3.0]
[1719997222828,0.02950403,3342.9,3342.0,3.0]
[1719997223001,0.20867172,3342.9,3341.8,3.55]
[1719997223334,0.20867172,3342.9,3341.2,0.41639099]
[1719997223335,0.99649685,3342.2,3341.2,0.41639099]
[1719997223500,0.02950403,3342.1,3340.5,7.39]
[1719997223701,1.02600088,3342.1,3341.1,2.99301]
[1719997223920,0.6999904,3342.0,3341.1,2.99301]
[1719997224221,0.6999904,3342.0,3340.9,2.9932]
[1719997224222,0.02950403,3341.9,3340.9,2.9932]
[1719997224516,0.17259913,3341.8,3341.1,2.99299]
[1719997225015,0.99649685,3341.6,3340.8,0.69999]
[1719997225213,0.02950403,3341.5,3340.8,0.69999]
[1719997225413,0.02950403,3341.5,3340.6,2.99347]
[1719997225619,0.02950403,3341.5,3340.5,2.99355]
[1719997225918,0.99649685,3341.0,3340.0,2.99399]
[1719997226081,0.02950403,3340.9,3340.0,2.99399]
[1719997226413,7.4662,3341.1,3340.1,0.05987209]
[1719997226809,7.4662,3341.1,3340.3,2.99373]
[1719997227148,0.02950403,3341.0,3340.0,2.99399]
[1719997227503,0.02950403,3341.0,3340.1,2.99391]
[1719997227702,7.4662,3341.1,3340.3,2.9937]
[1719997227900,7.4662,3341.1,3340.4,0.05986688]
[1719997228141,8.31246969,3341.1,3340.3,0.05986688]
[1719997228441,0.99649685,3340.9,3339.7,3.04587872]
[1719997228640,0.02950403,3340.8,3339.8,2.99416]
[1719997228843,0.96040068,3340.8,3339.8,2.99416]
[1719997229005,0.02950403,3340.7,3339.6,2.99434]
[1719997229421,0.02950403,3340.7,3339.3,3.04626762]
[1719997229422,0.99649685,3340.5,3339.3,3.04626762]
[1719997229633,0.02950403,3340.4,3339.3,3.04626762]
[1719997229916,0.02950403,3340.4,3339.6,2.99429]
[1719997230243,8.08539623,3341.1,3339.3,2.99455]
[1719997230244,0.99649685,3340.5,3339.3,2.99455]
[1719997230441,0.99649685,3340.5,3339.3,3.0462104]
[1719997230442,0.02950403,3340.4,3339.3,3.0462104]
[1719997230645,0.99649685,3340.1,3338.6,7.39]
[1719997230885,0.99649685,3339.9,3338.7,2.99511]
[1719997231022,0.84175372,3340.0,3338.4,3.0470964]
[1719997231023,0.99649685,3339.7,3338.4,3.0470964]
[1719997231345,0.99649685,3339.0,3337.9,7.70145794]
[1719997231646,0.99649685,3339.0,3337.5,0.05166368]
[1719997231647,0.02950403,3338.9,3337.5,0.05166368]
[1719997231845,0.02950403,3338.9,3337.9,2.99581]
[1719997232013,0.02950403,3338.9,3338.0,2.99578]
[1719997232217,0.99649685,3338.4,3337.5,0.05166368]
[1719997232433,0.02950403,3338.3,3337.5,0.05166368]
[1719997232631,0.02950403,3338.3,3336.6,2.99698]
[1719997232632,0.02950403,3338.3,3337.3,0.05992017]
[1719997232851,0.99649685,3338.7,3337.6,2.99615]
[1719997232852,0.02950403,3338.6,3337.6,2.99615]
[1719997233164,0.02950403,3338.6,3337.7,0.05991387]
[1719997233320,7.48,3339.3,3337.7,0.05991387]
[1719997233321,7.3871,3339.4,3338.1,2.99567]
[1719997233522,7.3871,3340.0,3338.1,0.00350315]
[1719997233852,8.38359685,3340.6,3339.6,2.99434]
[1719997234056,0.99649685,3340.1,3339.2,2.99472]
[1719997234217,0.02950403,3340.0,3339.3,3.0]
[1719997234422,8.22545969,3340.6,3338.9,7.39]
[1719997234423,0.99649685,3340.2,3339.0,3.05988742]
[1719997234620,0.02950403,3340.5,3339.1,0.60988525]
[1719997234944,0.02950403,3340.5,3339.6,2.99436]
[1719997235147,0.02950403,3340.5,3339.7,5.99425]
[1719997235347,8.38359685,3340.6,3339.7,5.99425]
[1719997235348,7.3871,3340.6,3339.7,5.99425]
[1719997235660,7.3871,3340.6,3340.0,2.99396]
[1719997235818,7.3871,3340.6,3340.1,2.9939]
[1719997236156,0.99649685,3340.9,3340.1,2.9939]
[1719997236361,0.02950403,3340.8,3340.2,2.99378]
[1719997236534,0.02950403,3341.0,3340.2,5.99378]
[1719997236736,7.0867,3341.2,3340.5,2.99352]
[1719997236958,7.0867,3341.2,3340.7,2.99336]
[1719997237278,0.99649685,3341.7,3340.8,2.99327]
[1719997237438,6.7973,3341.9,3340.9,3.0]
[1719997237439,0.02950403,3341.8,3340.9,3.0]
[1719997237625,0.99649685,3340.9,3339.8,7.39]
[1719997237984,0.99649685,3340.9,3339.3,11.22357145]
[1719997237985,0.02950403,3340.8,3340.1,2.9939]
[1719997238186,0.02950403,3340.8,3340.2,3.0]
[1719997238324,0.99649685,3341.4,3340.4,2.99362]
[1719997238524,0.02950403,3341.3,3340.4,2.99362]
[1719997238723,0.02950403,3341.3,3340.5,2.99355]
[1719997238964,0.99649685,3341.0,3340.2,3.0]
[1719997239160,0.02950403,3340.9,3340.2,3.0]
[1719997239325,7.0932,3340.8,3340.2,3.0]
[1719997239529,0.84142412,3340.7,3340.0,3.0]
[1719997239730,7.0932,3340.8,3340.1,2.99384]
[1719997239954,7.2936,3341.4,3340.5,2.99356]
[1719997240126,7.2936,3341.4,3340.2,5.99375]
[1719997240127,0.99649685,3341.2,3340.2,5.99375]
[1719997240327,0.02950403,3341.1,3340.2,5.99375]
[1719997240759,0.75886403,3341.3,3340.5,2.99355]
[1719997241325,0.75886403,3341.3,3340.6,3.05326142]
[1719997241523,7.2936,3341.4,3340.6,3.05326142]
[1719997241524,7.2936,3341.4,3340.6,0.05986142]
[1719997241853,7.2936,3341.4,3340.8,2.99328]
[1719997242029,7.2936,3341.4,3341.0,2.9931]
[1719997242224,8.39069685,3342.0,3341.0,2.9931]
[1719997242447,0.86857371,3341.9,3341.1,3.0]
[1719997242930,0.86857371,3341.9,3341.1,2.99302]
[1719997243124,0.02950403,3341.9,3341.1,2.99302]
[1719997243326,0.99649685,3342.5,3341.6,2.99254]
[1719997243555,0.02950403,3342.4,3341.7,3.0]
[1719997243765,0.82768009,3342.3,3341.7,3.0]
[1719997243964,0.02950403,3342.4,3341.8,2.99239]
[1719997244262,7.2508,3342.6,3341.9,3.05213202]
[1719997244462,7.2508,3342.6,3342.0,5.99221]
[1719997244870,0.99649685,3342.9,3342.2,2.99202]
[1719997245066,0.99649685,3342.9,3342.0,3.0]
[1719997245067,0.02950403,3342.8,3342.3,2.99195]
[1719997245232,0.85193372,3342.9,3342.3,2.99195]
[1719997245645,0.82242969,3342.9,3342.4,2.99178]
[1719997246168,7.2278,3343.2,3342.6,2.99165]
[1719997246864,0.99649685,3343.7,3342.8,2.99142]
[1719997247035,0.99649685,3343.7,3342.7,2.99151]
[1719997247036,0.02950403,3343.6,3342.9,2.9914]
[1719997248465,0.02950403,3343.6,3343.0,2.9913]
[1719997248978,7.4909,3344.0,3343.3,2.99097]
[1719997248979,0.02950403,3343.9,3343.3,2.99097]
[1719997249184,0.77859403,3343.9,3343.4,2.99096]
[1719997249468,0.02950403,3343.9,3343.1,5.99121]
[1719997249679,0.02950403,3343.9,3343.3,2.99104]
[1719997250066,0.02950403,3344.2,3343.5,2.99084]
[1719997250273,0.81980372,3344.2,3343.6,2.99078]
[1719997250971,0.02950403,3344.2,3343.6,2.99078]
[1719997251872,0.02950403,3344.2,3343.7,2.99068]
[1719997252369,0.02950403,3344.2,3343.6,2.99076]
[1719997252580,0.02950403,3344.2,3343.5,2.99086]
[1719997252581,0.02950403,3344.2,3343.7,2.99068]
[1719997253382,0.02950403,3344.3,3343.9,2.99051]
[1719997254086,0.02950403,3344.5,3343.9,2.99051]
[1719997254939,0.02950403,3344.5,3344.0,5.9904]
[1719997255759,0.02950403,3344.5,3344.1,2.9903]
[1719997255976,0.02950403,3344.7,3344.1,2.9903]
[1719997256191,0.02950403,3344.7,3344.0,3.0]
[1719997256543,0.02950403,3344.7,3344.0,2.99042]
[1719997256949,0.02950403,3344.7,3344.1,2.99032]
[1719997257386,0.02950403,3344.7,3344.2,5.99024]
[1719997259164,0.02950403,3345.1,3344.7,2.98975]
[1719997259364,7.88289685,3345.8,3345.0,2.98945]
[1719997259695,0.99649685,3345.5,3344.8,2.98969]
[1719997259869,0.02950403,3345.4,3344.9,2.9896]
[1719997260307,0.02950403,3345.4,3345.0,2.98952]
[1719997260473,0.99649685,3345.4,3344.6,2.98986]
[1719997260812,0.99649685,3345.1,3344.7,3.0]
[1719997261091,6.8864,3345.8,3343.7,7.39]
[1719997261092,6.7664,3344.8,3343.7,7.39]
[1719997261301,0.99649685,3344.4,3343.5,2.99087]
[1719997261472,0.02950403,3344.3,3343.5,2.99087]
[1719997261812,0.99649685,3344.1,3343.0,7.39]
[1719997262108,2.98981,3344.7,3343.9,2.99046]
[1719997262109,0.02950403,3344.6,3343.9,2.99046]
[1719997262267,0.02950403,3344.6,3342.8,4.31608904]
[1719997262268,1.00512503,3344.6,3343.7,2.99066]
[1719997262466,0.99649685,3344.4,3343.8,3.0]
[1719997262800,0.02950403,3344.3,3343.8,3.0]
[1719997263298,0.87680219,3344.5,3344.0,2.99036]
[1719997263510,0.87680219,3344.5,3343.8,3.0]
[1719997263511,0.19028031,3344.4,3343.8,3.0]
[1719997263688,0.19028031,3344.4,3343.3,3.0]
[1719997263689,0.99649685,3344.1,3343.3,3.0]
[1719997263854,0.19028031,3344.4,3343.3,3.0]
[1719997263855,0.02950403,3344.4,3343.5,2.9908]
[1719997264055,0.02950403,3344.4,3343.7,2.99061]
[1719997264296,0.87680219,3344.5,3344.0,2.99036]
[1719997264466,6.7664,3344.8,3344.4,2.99004]
[1719997264666,6.7664,3344.8,3344.3,2.99007]
[1719997264667,6.7664,3344.8,3344.5,2.98997]
[1719997264868,7.2695,3345.4,3344.7,2.98974]
[1719997265099,8.91296369,3345.4,3345.0,2.98946]
[1719997265300,0.68864,3345.7,3345.1,2.98939]
[1719997265597,0.02950403,3345.8,3345.1,2.98939]
[1719997265799,0.99649685,3345.7,3344.7,2.98977]
[1719997266099,0.02950403,3345.6,3345.0,2.98953]
[1719997266403,0.99649685,3345.9,3345.3,2.9892]
[1719997266404,0.02950403,3345.8,3345.3,2.9892]
[1719997266575,0.85905412,3345.8,3345.1,2.98939]